bitfinex-derivatives/quotes_ETHF0:USTF0_20250217
["timestamp","ask_amount","ask_price","bid_price","bid_amount"]
[1739828574424,2.46355545,2765.9,2765.8,3.2078]
[1739828575622,0.00355545,2765.9,2765.8,3.2078]
[1739828575829,2.46,2766.2,2765.8,3.78621]
[1739828576131,2.46,2766.2,2766.1,3.2078]
[1739828576430,2.46,2766.4,2766.1,3.2078]
[1739828577030,3.4000975,2766.2,2766.1,3.2078]
[1739828577333,0.57836,2766.1,2765.7,3.2078]
[1739828577725,3.9784375,2766.2,2765.7,3.2078]
[1739828578128,0.57835,2766.1,2765.7,3.2078]
[1739828578435,3.4000975,2765.9,2765.7,3.2078]
[1739828578634,5.8600975,2765.9,2765.7,3.2078]
[1739828578935,2.46,2765.9,2765.7,3.2078]
[1739828579234,2.46,2766.3,2765.7,3.2078]
[1739828579426,2.46,2766.3,2766.1,3.2078]
[1739828579622,3.4000975,2766.2,2766.1,3.2078]
[1739828579819,3.9784175,2766.2,2765.7,3.2078]
[1739828580026,3.4000975,2765.9,2765.7,3.2078]
[1739828580228,5.8600975,2765.9,2765.7,3.2078]
[1739828580429,2.46,2765.9,2765.7,3.2078]
[1739828581834,2.46,2765.9,2765.3,3.73792466]
[1739828582029,0.57846,2765.6,2765.3,3.21322466]
[1739828582231,2.459,2765.5,2765.3,3.21322466]
[1739828582528,2.459,2765.5,2765.3,3.75212466]
[1739828582936,8.56959069,2766.2,2765.3,3.75212466]
[1739828583133,2.459,2766.1,2765.6,3.2078]
[1739828583833,3.03736,2766.1,2765.6,3.2078]
[1739828584033,2.459,2766.1,2765.6,3.2078]
[1739828584231,3.7835,2766.2,2765.6,3.2078]
[1739828584427,2.459,2766.2,2766.1,3.2078]
[1739828584635,0.5383,2766.7,2766.1,3.2078]
[1739828584636,7.46229069,2766.8,2766.1,3.2078]
[1739828584838,2.459,2766.7,2766.1,3.2078]
[1739828585036,0.57827,2766.5,2766.1,3.2078]
[1739828585332,7.46229069,2766.8,2766.1,3.2078]
[1739828585333,2.459,2766.4,2766.1,3.2078]
[1739828586434,2.459,2766.6,2766.1,3.2078]
[1739828586629,3.03723,2766.7,2766.4,3.2078]
[1739828586825,0.57825,2766.6,2766.4,3.2078]
[1739828587025,3.03723,2766.7,2766.4,3.2078]
[1739828587234,2.459,2766.7,2766.4,3.2078]
[1739828587434,3.39005084,2767.8,2766.4,3.2078]
[1739828587739,0.57806,2767.5,2766.9,3.2078]
[1739828588538,0.57803,2767.6,2766.9,3.2078]
[1739828588734,3.5353,2767.7,2766.9,3.2078]
[1739828589629,2.463,2767.6,2766.9,3.2078]
[1739828590040,0.57808,2767.4,2766.9,3.2078]
[1739828590238,4.83255069,2767.5,2766.9,3.2078]
[1739828590439,4.25449069,2767.5,2766.9,3.2078]
[1739828591334,0.5781,2767.3,2766.9,3.2078]
[1739828591535,4.25449069,2767.5,2766.9,3.2078]
[1739828591834,0.57809,2767.4,2766.9,3.2078]
[1739828592038,0.5802906,2767.2,2766.9,3.2078]
[1739828592239,2.459,2767.1,2766.9,3.2078]
[1739828592439,3.0247,2767.1,2766.9,3.2078]
[1739828592830,3.0247,2767.1,2766.8,0.00542466]
[1739828592831,0.57817,2767.0,2766.8,0.00542466]
[1739828593035,1.15447,2767.0,2766.8,0.00542466]
[1739828593738,0.5763,2767.0,2766.8,0.00542466]
[1739828593941,4.83267069,2766.9,2766.8,0.00542466]
[1739828594129,7.46229069,2766.9,2766.0,0.5411]
[1739828594332,7.46229069,2766.9,2765.9,3.2078]
[1739828594333,0.57828,2766.4,2765.9,3.2078]
[1739828594640,3.6,2766.3,2765.9,3.2078]
[1739828594841,4.17831,2766.3,2765.9,3.2078]
[1739828595038,3.6,2766.3,2765.9,3.2078]
[1739828596336,2.46642466,2766.4,2765.9,3.2078]
[1739828596539,2.46642466,2766.4,2765.8,4.25991535]
[1739828596540,0.00542466,2766.4,2766.2,3.2078]
[1739828596840,0.00542466,2766.4,2766.3,1.0984]
[1739828598633,0.00542466,2766.4,2766.3,2.2271]
[1739828598836,3.2099706,2767.2,2766.3,7.6488]
[1739828599137,3.03914,2767.1,2766.7,3.2078]
[1739828599542,2.461,2767.1,2766.7,3.2078]
[1739828599836,2.4611706,2767.2,2767.0,3.2078]
[1739828600236,0.0021706,2767.2,2767.0,3.2078]
[1739828601240,0.5803006,2767.2,2767.0,3.2078]
[1739828601434,0.57814,2767.1,2767.0,3.2078]
[1739828601633,2.474,2767.1,2766.6,3.2078]
[1739828601835,0.57817,2767.0,2766.6,3.2078]
[1739828602034,4.15205,2767.1,2766.6,3.2078]
[1739828602629,0.57816,2767.0,2766.6,3.2078]
[1739828602840,3.5739,2767.1,2766.3,1.0984]
[1739828603036,0.06029722,2767.0,2766.5,3.2078]
[1739828603236,0.57823,2766.7,2766.1,3.2078]
[1739828603544,3.0217,2766.6,2766.1,3.2078]
[1739828603735,3.59994,2766.6,2766.1,3.2078]
[1739828603937,3.0217,2766.6,2766.1,3.2078]
[1739828604137,3.0217,2766.6,2766.4,3.2078]
[1739828604336,3.2078,2766.9,2766.4,3.2078]
[1739828604539,2.473,2766.8,2766.4,3.2078]
[1739828605346,2.475,2766.7,2766.1,4.25449069]
[1739828605539,2.475,2766.7,2766.6,3.2078]
[1739828607844,2.475,2766.7,2766.3,3.2078]
[1739828608550,0.57829,2766.4,2766.2,3.2078]
[1739828608744,3.0013,2766.3,2765.9,3.2078]
[1739828608944,3.525,2766.3,2765.9,3.2078]
[1739828611245,2.478,2766.3,2765.9,3.2078]
[1739828611943,0.57833,2766.2,2765.9,3.2078]
[1739828612148,9.94029069,2766.3,2765.8,0.00542466]
[1739828612344,0.57836,2766.1,2765.8,0.00542466]
[1739828612539,0.57838,2766.0,2765.8,0.00542466]
[1739828612741,3.05139,2765.9,2765.8,0.00542466]
[1739828614345,3.62589,2765.9,2765.8,0.00542466]
[1739828614545,3.0475,2765.9,2765.8,0.00542466]
[1739828617355,2.464,2766.0,2765.8,0.00542466]
[1739828617650,2.464,2766.0,2765.9,3.2078]
[1739828618651,2.474,2766.2,2765.9,3.771]
[1739828618844,3.2078,2766.9,2765.9,3.771]
[1739828619043,2.474,2766.8,2766.5,3.2078]
[1739828620445,3.2078,2766.9,2766.5,3.2078]
[1739828620653,2.476,2766.8,2766.6,1.1176]
[1739828621658,2.474,2766.7,2766.6,1.1176]
[1739828628561,2.474,2766.7,2766.5,3.2078]
[1739828628760,0.57824,2766.6,2766.5,3.2078]
[1739828628964,1.15384,2766.6,2766.5,3.2078]
[1739828630064,0.5756,2766.6,2766.5,3.2078]
[1739828631067,1.15384,2766.6,2766.5,3.2078]
[1739828631569,0.5756,2766.6,2766.5,3.2078]
[1739828631972,2.474,2766.7,2766.5,3.2078]
[1739828632465,2.459,2766.6,2766.5,3.2078]
[1739828636470,2.458,2766.8,2766.5,3.78605]
[1739828636661,2.458,2766.9,2766.6,0.5335]
[1739828636865,2.458,2766.9,2766.8,3.2078]
[1739828637062,3.03618,2766.9,2766.8,3.2078]
[1739828637770,3.03616,2767.0,2766.8,3.2078]
[1739828637970,2.458,2767.0,2766.8,3.2078]
[1739828638170,3.03616,2767.0,2766.8,3.2078]
[1739828639075,2.458,2767.0,2766.8,3.2078]
[1739828642885,0.57818,2766.9,2766.8,3.2078]
[1739828643077,0.5669,2766.9,2766.8,3.2078]
[1739828644775,1.14508,2766.9,2766.8,3.2078]
[1739828646483,1.14508,2766.9,2766.5,3.2078]
[1739828647880,1.1451,2766.9,2766.5,3.2078]
[1739828648082,0.57823,2766.7,2766.5,3.2078]
[1739828648285,3.0069,2766.6,2766.5,3.2078]
[1739828648588,3.58514,2766.6,2766.5,3.2078]
[1739828649175,6.97700495,2766.6,2766.5,3.2078]
[1739828651383,12.98800495,2766.6,2766.5,3.2078]
[1739828651686,6.97700495,2766.6,2766.5,3.2078]
[1739828652488,6.45906935,2766.6,2766.2,3.2078]
[1739828652786,0.57829,2766.4,2766.2,3.2078]
[1739828652987,0.57827,2766.5,2766.2,3.2078]
[1739828653187,3.0069,2766.6,2766.2,3.2078]
[1739828653387,0.5669,2766.9,2766.5,3.2078]
[1739828653583,2.458,2766.6,2766.5,3.2078]
[1739828657982,2.458,2766.8,2766.5,3.2078]
[1739828661386,2.458,2766.8,2766.5,3.78606]
[1739828661581,1.12555,2767.1,2766.5,3.2078]
[1739828661787,2.458,2766.9,2766.4,1.1501]
[1739828662090,2.458,2766.9,2766.8,3.2078]
[1739828662390,3.03618,2766.9,2766.8,3.2078]
[1739828663090,2.458,2766.9,2766.8,3.2078]
[1739828667787,2.46002859,2766.9,2766.8,3.2078]
[1739828671990,0.00202859,2766.9,2766.8,3.2078]
[1739828672191,3.39186495,2767.7,2767.3,0.57808]
[1739828672192,0.5639,2767.7,2767.3,0.57808]
[1739828672390,3.0219,2767.7,2767.6,3.2078]
[1739828672910,0.18225084,2767.8,2767.6,3.2078]
[1739828673089,2.458,2767.8,2767.6,3.2078]
[1739828674695,0.17865664,2767.9,2767.6,3.2078]
[1739828674898,2.46065173,2768.0,2767.6,6.59966495]
[1739828675096,2.46065173,2768.0,2767.9,3.2078]
[1739828676292,2.457,2768.7,2767.9,6.59966495]
[1739828676592,0.57784,2768.5,2768.4,3.2078]
[1739828676792,3.5954,2768.7,2768.4,3.2078]
[1739828676988,0.06025683,2768.6,2768.4,3.2078]
[1739828677491,2.457,2768.5,2768.4,3.2078]
[1739828678890,2.457,2768.5,2768.1,3.2078]
[1739828680404,3.03486,2768.5,2768.1,3.2078]
[1739828680696,2.457,2768.5,2768.1,3.2078]
[1739828680899,3.03485,2768.5,2768.1,3.2078]
[1739828682301,3.39186495,2768.2,2767.7,3.2078]
[1739828682498,0.57799,2767.8,2767.7,3.2078]
[1739828683096,0.57803,2767.7,2767.4,3.2078]
[1739828683300,2.457,2767.6,2767.4,3.2078]
[1739828683504,1.12535,2767.5,2767.4,3.2078]
[1739828683696,1.67685,2767.5,2767.4,3.2078]
[1739828686595,0.5781,2767.3,2767.2,0.00542466]
[1739828686800,4.03024814,2767.3,2767.2,0.00542466]
[1739828687686,4.0302557,2767.3,2767.2,0.00542466]
[1739828688901,7.2380557,2767.3,2767.2,0.00542466]
[1739828689101,18.6709557,2767.3,2766.2,0.5438]
[1739828689302,3.39186495,2766.5,2766.0,0.5574]
[1739828689504,2.457,2766.4,2766.2,3.2078]
[1739828691504,3.03529,2766.4,2766.2,3.2078]
[1739828691800,0.57835,2766.1,2766.0,0.00542466]
[1739828692300,0.63866372,2766.1,2766.0,0.00542466]
[1739828693205,3.26811372,2766.1,2765.4,3.7696]
[1739828693395,0.57847,2765.5,2765.2,0.5405]
[1739828693600,2.457,2765.4,2765.2,0.5405]
[1739828694707,2.457,2765.5,2765.2,0.5405]
[1739828694908,2.457,2765.5,2765.4,3.2078]
[1739828698609,3.93356495,2766.0,2765.4,3.2078]
[1739828698805,3.93356495,2766.0,2765.2,1.067]
[1739828698806,2.458,2765.9,2765.7,3.2078]
[1739828700407,0.57841,2765.8,2765.7,3.2078]
[1739828700710,2.458,2765.8,2765.7,3.2078]
[1739828701610,3.03641,2765.8,2765.7,3.2078]
[1739828701809,0.57844,2765.7,2765.4,3.2078]
[1739828702207,0.5466,2765.7,2765.4,3.2078]
[1739828702406,1.12503,2765.7,2765.4,3.2078]
[1739828702605,0.5466,2765.7,2765.4,3.2078]
[1739828702916,1.12504,2765.7,2765.4,3.2078]
[1739828703110,0.5466,2765.7,2765.4,3.2078]
[1739828703316,0.5785,2765.4,2765.2,0.5405]
[1739828703613,3.0365,2765.4,2765.2,0.5405]
[1739828703815,2.458,2765.4,2765.2,0.5405]
[1739828704507,0.5466,2765.7,2765.2,0.5405]
[1739828704704,2.458,2765.6,2765.4,3.2078]
[1739828706112,3.39186495,2766.4,2765.4,6.59966495]
[1739828706306,2.458,2766.3,2765.9,3.2078]
[1739828706507,2.458,2766.3,2766.0,1.1184]
[1739828707704,0.57838,2766.0,2765.6,3.2078]
[1739828707911,2.458,2765.9,2765.6,4.2949]
[1739828710309,0.18290454,2766.2,2765.7,3.39186495]
[1739828710517,2.458,2766.2,2765.9,3.2078]
[1739828710903,0.57832,2766.3,2765.9,3.2078]
[1739828711108,0.57833,2766.2,2765.9,3.2078]
[1739828711307,0.57837,2766.0,2765.9,3.2078]
[1739828711510,0.5594,2766.2,2765.9,3.2078]
[1739828711817,3.03635,2766.1,2765.9,3.2078]
[1739828712518,0.57837,2766.0,2765.9,3.2078]
[1739828712813,1.15437,2766.0,2765.9,3.2078]
[1739828713014,0.576,2766.0,2765.9,3.2078]
[1739828714024,2.64208924,2766.1,2765.9,3.2078]
[1739828714918,3.22043924,2766.1,2765.9,3.2078]
[1739828715213,2.64208924,2766.1,2765.9,3.2078]
[1739828716121,2.458,2766.1,2765.9,3.2078]
[1739828716617,0.00542466,2766.6,2765.9,3.78618]
[1739828716820,2.457,2766.5,2766.2,3.2078]
[1739828717016,0.00542466,2766.6,2766.3,0.5515]
[1739828717322,0.00542466,2766.6,2766.5,3.2078]
[1739828717516,3.39728961,2766.6,2766.3,1.1099]
[1739828717820,0.57827,2766.5,2766.1,3.2078]
[1739828718022,3.39186495,2766.3,2766.1,3.2078]
[1739828718222,2.457,2766.2,2766.1,3.2078]
[1739828718417,2.457,2766.2,2765.8,3.2078]
[1739828718618,3.39186495,2766.0,2765.8,3.2078]
[1739828719015,2.457,2766.2,2765.8,3.2078]
[1739828719318,0.57839,2765.9,2765.8,3.2078]
[1739828719714,1.67199,2765.9,2765.8,3.2078]
[1739828720114,1.67199,2765.9,2765.4,4.3177]
[1739828720311,2.457,2765.8,2765.4,4.3177]
[1739828721117,2.457,2765.9,2765.7,3.2078]
[1739828728920,0.57841,2765.8,2765.7,3.2078]
[1739828729117,1.70791,2765.8,2765.7,3.2078]
[1739828729420,0.57847,2765.5,2765.4,3.2078]
[1739828729616,6.42733495,2765.5,2765.4,3.2078]
[1739828729827,5.84886495,2765.5,2765.0,3.21322466]
[1739828730018,3.97041495,2765.2,2765.0,0.00542466]
[1739828730219,2.457,2765.1,2765.0,0.00542466]
[1739828730421,3.0314,2765.1,2765.0,0.00542466]
[1739828732525,3.0314,2765.1,2765.0,3.21322466]
[1739828732822,3.60996,2765.1,2765.0,0.00542466]
[1739828733027,3.09174035,2765.1,2764.7,3.2078]
[1739828733229,3.09174035,2765.1,2763.6,3.39186495]
[1739828733230,0.57871,2764.4,2764.0,4.3022]
[1739828733425,2.457,2764.3,2764.0,4.3022]
[1739828733633,3.39186495,2764.1,2764.0,3.2078]
[1739828734023,3.39186495,2764.1,2763.5,0.5696]
[1739828734024,3.39186495,2764.1,2763.5,3.7774]
[1739828734323,3.97063495,2764.1,2763.8,0.00542466]
[1739828734721,3.39186495,2764.1,2763.8,0.00542466]
[1739828735731,0.57879,2764.0,2763.8,0.00542466]
[1739828735928,2.458,2763.9,2763.8,0.00542466]
[1739828737830,3.03681,2763.9,2763.8,0.00542466]
[1739828738028,2.51836704,2763.9,2763.5,3.2078]
[1739828738228,3.97073495,2763.6,2763.5,3.2078]
[1739828738932,0.57889,2763.5,2763.0,0.5673]
[1739828739135,2.458,2763.4,2763.0,0.5673]
[1739828739333,2.458,2763.4,2763.2,3.2078]
[1739828739627,2.458,2763.4,2763.0,0.57272466]
[1739828739827,3.03691,2763.4,2763.2,3.2078]
[1739828740033,3.03691,2763.4,2763.0,0.57272466]
[1739828740034,0.57897,2763.1,2763.0,0.00542466]
[1739828740235,0.57896,2763.2,2763.0,0.00542466]
[1739828740422,0.06038713,2763.1,2763.0,0.00542466]
[1739828740728,0.58398713,2763.1,2763.0,0.00542466]
[1739828740926,1.22334374,2763.1,2763.0,0.00542466]
[1739828741232,1.16295661,2763.1,2763.0,0.00542466]
[1739828742231,1.16295949,2763.1,2763.0,0.00542466]
[1739828743126,3.39186495,2762.7,2762.3,3.2078]
[1739828743329,2.458,2762.6,2762.3,3.2078]
[1739828745229,2.46442466,2762.7,2762.4,0.57911]
[1739828745431,2.46442466,2762.7,2762.6,3.2078]
[1739828755734,0.00542466,2762.7,2762.6,3.2078]
[1739828755933,0.00542466,2762.7,2762.6,3.78688]
[1739828756139,0.00542466,2762.7,2762.6,3.7345]
[1739828757742,0.00542466,2762.7,2762.6,3.2078]
[1739828760142,0.00542466,2762.7,2762.6,3.78688]
[1739828760349,0.00542466,2762.7,2762.6,3.2078]
[1739828761541,0.00542466,2762.7,2762.6,3.78688]
[1739828761740,0.00542466,2762.7,2762.6,3.2078]
[1739828762148,0.00542466,2762.7,2762.6,3.78688]
[1739828763345,0.5269,2763.5,2762.7,1.44765]
[1739828763552,0.5269,2763.5,2762.6,12.59966495]
[1739828763553,2.459,2763.6,2763.4,3.2078]
[1739828763852,0.57889,2763.5,2763.4,3.2078]
[1739828764450,2.459,2763.6,2763.3,3.2078]
[1739828764651,3.39186495,2763.4,2763.3,3.2078]
[1739828764952,3.97077495,2763.4,2763.3,3.2078]
[1739828765647,0.5577,2763.5,2763.3,3.2078]
[1739828766056,0.00542466,2763.7,2763.3,3.78672]
[1739828766252,2.459,2763.5,2763.4,0.5259]
[1739828766450,2.459,2763.5,2763.4,3.7337]
[1739828766949,0.00542466,2763.7,2763.4,3.7337]
[1739828767150,0.00542466,2763.7,2763.5,1.68768]
[1739828767453,0.00542466,2763.7,2763.5,0.5764]
[1739828768458,0.00542466,2763.7,2763.5,1.15529]
[1739828768650,0.00542466,2763.7,2763.5,0.5764]
[1739828768846,3.97614961,2763.7,2763.5,0.5764]
[1739828769158,3.39728961,2763.7,2763.5,0.5764]
[1739828769457,0.00542466,2763.7,2763.5,0.5764]
[1739828770047,0.00542466,2763.7,2763.6,0.57887]
[1739828772352,0.00542466,2763.7,2763.6,0.85717619]
[1739828773959,0.00542466,2763.7,2763.6,0.27830619]
[1739828774151,0.00542466,2763.7,2763.5,0.5764]
[1739828774752,0.00542466,2763.7,2763.5,1.15528]
[1739828775057,0.57877,2764.1,2763.5,0.5764]
[1739828775253,0.57877,2764.1,2764.0,3.2078]
[1739828775455,3.03674,2764.3,2764.0,3.2078]
[1739828775654,2.458,2764.3,2764.0,3.2078]
[1739828776460,2.458,2764.3,2764.0,3.78658]
[1739828776761,0.00542466,2764.4,2764.0,3.78658]
[1739828776762,2.46342466,2764.4,2764.1,1.68225]
[1739828776959,0.00542466,2764.4,2764.3,3.2078]
[1739828778955,0.00542466,2764.4,2764.3,3.78652]
[1739828779262,3.0339,2765.1,2764.6,0.57865]
[1739828779454,3.0339,2765.1,2765.0,3.2078]
[1739828782364,2.457,2765.2,2765.0,3.2078]
[1739828782559,0.00542466,2765.3,2765.0,3.2078]
[1739828783263,0.00542466,2765.3,2765.0,3.48227859]
[1739828783557,0.00542466,2765.3,2765.2,0.57853]
[1739828783863,0.00542466,2765.3,2765.1,0.5648]
[1739828784163,0.00542466,2765.3,2765.2,0.57853]
[1739828784365,0.00542466,2765.3,2765.2,1.10343]
[1739828785467,0.00542466,2765.3,2765.2,0.5249]
[1739828785862,0.00542466,2765.3,2765.2,1.10343]
[1739828786059,0.00542466,2765.3,2765.2,0.5249]
[1739828786360,0.00542466,2765.3,2765.2,1.10343]
[1739828788261,3.39186495,2766.5,2765.2,9.91676495]
[1739828788559,2.457,2766.1,2766.0,3.2078]
[1739828788958,3.03535,2766.1,2766.0,3.2078]
[1739828789763,3.09566419,2766.1,2766.0,3.2078]
[1739828789964,2.51731419,2766.1,2765.8,0.00542466]
[1739828790268,2.457,2766.1,2765.8,0.00542466]
[1739828791462,2.457,2766.1,2766.0,3.2078]
[1739828794364,3.09566465,2766.1,2766.0,3.2078]
[1739828794556,2.51731465,2766.1,2766.0,3.2078]
[1739828794761,2.457,2766.1,2766.0,3.2078]
[1739828795371,2.457,2766.1,2765.8,0.00542466]
[1739828795565,3.03535,2766.1,2765.8,0.00542466]
[1739828795765,2.457,2766.1,2765.8,0.00542466]
[1739828796365,2.457,2766.1,2766.0,3.2078]
[1739828802167,2.455,2766.1,2766.0,3.2078]
[1739828804074,2.455,2766.1,2766.0,3.7718]
[1739828811977,3.03335,2766.1,2766.0,3.2078]
[1739828812176,2.455,2766.1,2766.0,3.2078]
[1739828812784,3.03335,2766.1,2766.0,3.2078]
[1739828813183,2.455,2766.1,2766.0,3.2078]
[1739828814185,3.03335,2766.1,2766.0,3.2078]
[1739828815083,2.455,2766.1,2766.0,3.2078]
[1739828816681,0.57839,2765.9,2765.8,0.00542466]
[1739828816879,1.44621,2765.5,2764.7,3.2078]
[1739828817081,3.39186495,2764.8,2764.4,3.7473]
[1739828817279,3.39186495,2764.8,2764.7,3.2078]
[1739828817687,2.455,2764.9,2764.7,3.2078]
[1739828819080,0.00542466,2765.1,2764.7,3.2078]
[1739828819289,2.46042466,2765.1,2765.0,3.2078]
[1739828819485,2.46042466,2765.1,2765.0,3.7473]
[1739828820579,0.00542466,2765.1,2765.0,4.32588]
[1739828820786,3.39186495,2766.0,2765.3,0.5785]
[1739828820988,2.455,2765.9,2765.6,3.2078]
[1739828821290,2.455,2766.0,2765.7,0.5789]
[1739828823493,2.455,2766.0,2765.9,3.2078]
[1739828828486,0.00542466,2766.1,2765.9,3.2078]
[1739828828687,2.45942466,2766.1,2765.9,3.2078]
[1739828830093,0.00542466,2766.1,2765.9,3.2078]
[1739828830296,0.00542466,2766.1,2765.9,3.78618]
[1739828830497,0.00542466,2766.1,2765.9,3.2078]
[1739828830995,0.00542466,2766.1,2765.9,3.78619]
[1739828831195,0.00542466,2766.1,2765.9,3.2078]
[1739828831594,0.00542466,2766.1,2766.0,0.57837]
[1739828832198,3.2078,2766.8,2765.9,3.48778994]
[1739828832400,2.454,2766.7,2766.6,3.2078]
[1739828832901,3.0321,2767.3,2766.6,3.78603]
[1739828833102,1.1398,2767.3,2767.0,3.2078]
[1739828833398,0.5617,2767.3,2767.0,3.2078]
[1739828833598,3.2078,2768.2,2767.1,0.5658]
[1739828833797,3.39186495,2767.7,2767.3,3.2078]
[1739828834301,5.84586495,2767.7,2767.3,3.2078]
[1739828835102,6.42388495,2767.7,2767.3,3.2078]
[1739828835700,5.84586495,2767.7,2767.3,3.2078]
[1739828835897,4.49896495,2768.0,2767.6,3.2078]
[1739828836199,2.454,2767.9,2767.6,3.2078]
[1739828836405,3.03198,2767.9,2767.6,3.2078]
[1739828836604,2.454,2767.9,2767.6,3.2078]
[1739828837002,3.39186495,2768.0,2767.6,3.2078]
[1739828837205,2.453,2767.9,2767.7,1.1329]
[1739828840509,0.57799,2767.8,2767.6,3.2078]
[1739828840914,3.03099,2767.9,2767.6,3.2078]
[1739828842010,0.57809,2767.3,2767.2,3.2078]
[1739828842208,5.84486495,2767.4,2766.9,3.2078]
[1739828842415,0.5782,2766.8,2766.6,3.2078]
[1739828842610,2.453,2766.9,2766.6,3.2078]
[1739828843115,2.453,2766.9,2766.7,0.58372466]
[1739828844104,0.5782,2766.8,2766.7,0.00542466]
[1739828844517,1.14099663,2766.8,2766.0,3.2078]
[1739828844716,0.57827,2766.5,2766.1,3.2078]
[1739828844911,2.453,2766.4,2765.8,1.6857]
[1739828845118,2.453,2766.4,2766.3,3.2078]
[1739828845417,2.453,2766.5,2766.3,3.2078]
[1739828845613,2.453,2766.5,2766.4,1.073]
[1739828847423,0.57828,2766.4,2766.3,3.2078]
[1739828847716,1.10148,2766.4,2766.3,3.2078]
[1739828848017,0.57832,2766.2,2766.1,0.00542466]
[1739828848323,3.97018495,2766.2,2766.1,0.00542466]
[1739828849210,4.03049635,2766.2,2766.1,0.00542466]
[1739828849417,4.03049635,2766.2,2765.7,3.2078]
[1739828849418,0.57841,2765.8,2765.7,3.2078]
[1739828849613,3.03141,2765.8,2765.7,3.2078]
[1739828850122,3.60131,2765.8,2765.7,3.2078]
[1739828851023,0.57845,2765.6,2765.5,0.00542466]
[1739828851220,3.97031495,2765.6,2765.5,0.00542466]
[1739828851715,4.03064074,2765.6,2765.5,0.00542466]
[1739828852223,0.57859,2765.0,2764.8,3.2078]
[1739828852518,0.5786,2764.9,2764.8,3.2078]
[1739828852711,0.57866,2764.6,2764.3,3.2078]
[1739828852916,2.453,2764.6,2764.3,3.2078]
[1739828853516,3.03167,2764.6,2764.3,3.2078]
[1739828854624,3.03166,2764.6,2764.3,3.2078]
[1739828854824,2.453,2764.6,2764.3,3.2078]
[1739828856621,0.00542466,2764.7,2764.3,6.59966495]
[1739828856926,0.00542466,2764.7,2764.6,3.2078]
[1739828859925,2.454,2765.3,2764.6,6.59966495]
[1739828860226,2.454,2765.3,2765.2,3.2078]
[1739828860423,3.03251,2765.3,2765.2,3.2078]
[1739828860625,2.454,2765.3,2765.2,3.2078]
[1739828862126,2.454,2765.4,2765.2,3.2078]
[1739828864831,0.00542466,2765.5,2765.2,3.2078]
[1739828866421,0.00542466,2765.5,2765.4,3.2078]
[1739828871533,0.5582,2766.1,2765.8,0.57839]
[1739828871841,2.453,2766.2,2766.0,3.2078]
[1739828873232,3.03133,2766.2,2766.0,3.2078]
[1739828876039,2.453,2766.2,2766.0,3.2078]
[1739828876234,3.03133,2766.2,2766.0,3.2078]
[1739828876739,11.85386495,2766.2,2765.8,0.00542466]
[1739828876934,3.97025495,2765.9,2765.8,0.00542466]
[1739828877133,4.03057441,2765.9,2765.8,0.00542466]
[1739828877740,4.03057566,2765.9,2765.8,0.00542466]
[1739828878236,3.45218516,2765.9,2765.8,0.00542466]
[1739828878433,0.544,2766.1,2765.8,0.00542466]
[1739828879540,2.453,2766.1,2766.0,3.2078]
[1739828879843,2.453,2766.2,2766.0,3.2078]
[1739828880842,0.57835,2766.1,2766.0,3.2078]
[1739828881237,0.63866473,2766.1,2766.0,3.2078]
[1739828881438,0.57838,2766.0,2765.8,0.00542466]
[1739828881643,0.5304,2765.9,2765.8,0.00542466]
[1739828882143,0.5304,2765.9,2765.8,3.21322466]
[1739828882945,6.42319495,2766.2,2765.8,3.21322466]
[1739828883138,0.06031395,2766.1,2765.8,3.21322466]
[1739828883445,0.00542466,2766.4,2765.8,3.79162466]
[1739828883646,0.00542466,2766.4,2766.2,3.2078]
[1739828883838,2.453,2766.3,2766.2,3.2078]
[1739828884240,0.00542466,2766.4,2766.2,3.2078]
[1739828884643,0.00542466,2766.4,2766.3,1.1032]
[1739828884944,0.00542466,2766.4,2766.3,0.5249]
[1739828885145,0.00542466,2766.4,2766.2,3.2078]
[1739828885540,0.00542466,2766.4,2766.2,3.78612]
[1739828885740,0.00542466,2766.4,2766.2,3.2078]
[1739828892541,0.58371466,2766.4,2766.2,3.2078]
[1739828892847,0.00542466,2766.4,2766.2,3.2078]
[1739828895141,0.58371466,2766.4,2766.2,3.2078]
[1739828895443,2.452,2766.3,2766.2,3.2078]
[1739828895844,3.0303,2766.3,2766.2,3.2078]
[1739828896043,0.57836,2766.1,2765.8,3.21322466]
[1739828896649,0.57834,2766.2,2765.8,3.21322466]
[1739828896949,0.57834,2766.2,2766.1,3.2078]
[1739828897947,6.009,2766.0,2765.1,3.2078]
[1739828898143,0.57851,2765.4,2765.1,3.2078]
[1739828898344,3.0159,2765.3,2765.1,3.2078]
[1739828901950,2.452,2765.3,2765.1,3.2078]
[1739828903444,2.452,2765.4,2765.1,3.2078]
[1739828903654,3.03051,2765.4,2765.1,3.2078]
[1739828904547,2.452,2765.4,2765.1,3.2078]
[1739828905151,3.03051,2765.4,2765.1,3.2078]
[1739828906349,2.452,2765.4,2765.1,3.2078]
[1739828908750,0.57851,2765.3,2765.1,3.2078]
[1739828908957,3.03051,2765.4,2765.1,3.2078]
[1739828909357,2.452,2765.4,2765.1,3.2078]
[1739828909752,3.0305,2765.4,2765.1,3.2078]
[1739828909952,0.57852,2765.3,2765.1,3.2078]
[1739828910960,0.57851,2765.3,2765.1,3.2078]
[1739828911759,2.452,2765.4,2765.1,3.2078]
[1739828911961,0.5771,2765.2,2765.1,3.2078]
[1739828912653,1.15563,2765.2,2765.1,3.2078]
[1739828914560,0.57858,2765.0,2764.9,0.00542466]
[1739828914754,11.85286495,2765.0,2764.7,3.2078]
[1739828915056,0.57862,2764.8,2764.7,3.2078]
[1739828923457,5.84386495,2765.0,2764.7,3.2078]